bitfinex/quotes_ETHUSD_20260114
["timestamp","ask_amount","ask_price","bid_price","bid_amount"]
[1768377408257,2.86139296,3330.7,3330.2,3.30310523]
[1768377408459,0.002,3330.4,3330.2,3.30310523]
[1768377408656,2.777,3330.7,3330.3,9.05400471]
[1768377408863,5.65725007,3330.7,3330.2,0.30028856]
[1768377409759,2.777,3330.7,3330.2,12.35709266]
[1768377409960,2.777,3330.7,3330.3,10.37971474]
[1768377410464,2.777,3330.7,3330.3,1.32571003]
[1768377410761,2.777,3330.7,3330.2,0.30028856]
[1768377410964,2.777,3330.7,3330.3,9.05400471]
[1768377411560,0.28074149,3330.6,3330.1,3.00282992]
[1768377411762,3.332,3330.7,3330.2,9.05400471]
[1768377411957,0.28075014,3330.6,3330.2,9.05400471]
[1768377412159,3.332,3330.7,3330.2,9.05400471]
[1768377412333,0.28075873,3330.6,3330.2,9.05400471]
[1768377412531,0.28075133,3330.5,3330.2,9.05400471]
[1768377412772,3.332,3330.7,3330.2,10.34970399]
[1768377412976,0.28075126,3330.6,3330.2,9.05400471]
[1768377413154,0.28075126,3330.5,3330.2,9.05400471]
[1768377413360,3.332,3330.7,3330.2,9.05400471]
[1768377413577,1.665,3331.0,3330.5,9.05400471]
[1768377413861,8.327,3331.1,3330.9,9.05400471]
[1768377414031,6.81589359,3331.1,3330.7,9.05400471]
[1768377414231,6.81589359,3331.1,3330.9,9.05400471]
[1768377415779,6.81589359,3331.1,3330.7,9.07487612]
[1768377416435,7.37089359,3331.1,3330.7,9.07487612]
[1768377418172,7.37089359,3331.1,3330.8,9.05400471]
[1768377418963,7.92589359,3331.1,3330.8,9.05400471]
[1768377421598,8.48089359,3331.1,3330.8,9.05400471]
[1768377422598,8.48089359,3331.1,3330.7,0.02087141]
[1768377423099,8.48089359,3331.1,3330.7,9.07487612]
[1768377424107,9.03589359,3331.1,3330.7,9.07487612]
[1768377425496,0.28081333,3331.0,3330.7,9.07487612]
[1768377425696,9.03589359,3331.1,3330.7,9.07487612]
[1768377426386,0.28081594,3331.0,3330.7,9.07487612]
[1768377426692,9.59089359,3331.1,3330.7,9.07487612]
[1768377427400,0.28081261,3331.0,3330.7,9.07487612]
[1768377427599,9.59089359,3331.1,3330.7,9.07487612]
[1768377427899,0.28081428,3331.0,3330.7,9.07487612]
[1768377428080,9.59089359,3331.1,3330.7,9.07487612]
[1768377428280,0.28081433,3331.0,3330.7,9.07487612]
[1768377428483,9.59089359,3331.1,3330.7,9.07487612]
[1768377428682,0.28081586,3331.0,3330.7,9.07487612]
[1768377428870,10.14589359,3331.1,3330.7,9.07487612]
[1768377429198,0.28081625,3331.0,3330.7,9.07487612]
[1768377429382,10.14589359,3331.1,3330.7,9.07487612]
[1768377429580,0.28081913,3331.0,3330.7,9.07487612]
[1768377429823,10.14589359,3331.1,3330.7,9.07487612]
[1768377430101,0.28081935,3331.0,3330.7,9.07487612]
[1768377430306,10.14589359,3331.1,3330.7,9.07487612]
[1768377430601,0.28082249,3331.0,3330.7,9.07487612]
[1768377430772,10.14589359,3331.1,3330.7,9.07487612]
[1768377431101,0.28082225,3331.0,3330.7,9.07487612]
[1768377431302,10.70089359,3331.1,3330.8,9.42884862]
[1768377431472,10.70089359,3331.1,3330.7,12.45205735]
[1768377431672,10.70089359,3331.1,3330.7,9.44972003]
[1768377432105,0.002,3330.8,3330.7,9.44972003]
[1768377432306,10.70089359,3331.1,3330.7,10.46895673]
[1768377432609,10.70089359,3331.1,3330.7,12.45208761]
[1768377433304,10.70089359,3331.1,3330.8,9.42884862]
[1768377433686,11.25589359,3331.1,3330.8,9.42884862]
[1768377436188,11.81089359,3331.1,3330.8,9.42884862]
[1768377436587,4.995,3331.5,3331.1,9.42884862]
[1768377436791,0.28084386,3331.4,3331.1,9.42884862]
[1768377436992,4.995,3331.5,3331.0,3.00209039]
[1768377437191,4.995,3331.5,3331.0,12.43093901]
[1768377437593,4.995,3331.5,3331.0,9.42884862]
[1768377437914,4.945,3331.5,3331.0,9.42884862]
[1768377438514,5.5,3331.5,3331.0,9.42884862]
[1768377441214,6.055,3331.5,3331.0,9.42884862]
[1768377442486,6.055,3331.5,3331.1,9.69390136]
[1768377443680,6.61,3331.5,3331.1,9.69390136]
[1768377444703,6.61,3331.5,3331.3,0.001]
[1768377445107,6.61,3331.5,3331.3,9.69490136]
[1768377446417,7.165,3331.5,3331.3,9.6225678]
[1768377447219,7.165,3331.5,3330.9,9.69390136]
[1768377448618,7.72,3331.5,3330.9,9.69390136]
[1768377448824,7.72,3331.5,3330.9,11.00471554]
[1768377448992,0.28090649,3331.4,3330.9,11.00471554]
[1768377449190,0.28090649,3331.3,3330.9,11.00471554]
[1768377449392,7.72,3331.5,3330.9,11.00471554]
[1768377449604,0.28090099,3331.4,3330.9,11.00471554]
[1768377449834,0.28090099,3331.3,3330.9,11.00471554]
[1768377450026,7.72,3331.5,3331.1,9.69390136]
[1768377450327,0.28090075,3331.4,3331.1,9.69390136]
[1768377450545,0.28090075,3331.3,3330.9,9.69390136]
[1768377450744,0.28090075,3331.3,3330.7,9.69390136]
[1768377450745,0.28090216,3331.2,3330.7,9.69390136]
[1768377451024,0.89998335,3331.2,3330.7,9.69390136]
[1768377451233,0.28090927,3331.1,3330.7,9.69390136]
[1768377451440,1.45498335,3331.2,3330.7,9.69390136]
[1768377451933,0.28091186,3331.1,3330.7,9.69390136]
[1768377452098,1.45498335,3331.2,3330.7,10.96353118]
[1768377452299,0.28091179,3331.1,3330.7,10.96353118]
[1768377452518,1.45498335,3331.2,3330.7,10.96353118]
[1768377452798,0.28091717,3331.1,3330.7,10.96353118]
[1768377452998,1.45498335,3331.2,3330.7,10.96353118]
[1768377453216,0.28091729,3331.1,3330.7,10.96353118]
[1768377453416,1.45498335,3331.2,3330.7,10.96353118]
[1768377453728,0.28092449,3331.1,3330.7,10.96353118]
[1768377453927,2.00998335,3331.2,3330.7,10.96353118]
[1768377454129,0.28092449,3331.1,3330.7,10.96353118]
[1768377454331,2.00998335,3331.2,3330.7,10.96353118]
[1768377454626,0.28094138,3331.1,3330.7,10.96353118]
[1768377454825,2.00998335,3331.2,3330.7,10.96353118]
[1768377454996,0.28094139,3331.1,3330.7,10.96353118]
[1768377455197,2.00998335,3331.2,3330.7,10.96353118]
[1768377455409,0.28094666,3331.1,3330.7,10.96353118]
[1768377455728,2.00998335,3331.2,3330.7,10.96353118]
[1768377455918,0.28094673,3331.1,3330.7,9.69390136]
[1768377456126,2.56498335,3331.2,3330.7,9.69390136]
[1768377456338,0.28095105,3331.1,3331.0,0.001]
[1768377459047,0.83595105,3331.1,3331.0,0.001]
[1768377460843,0.83595105,3331.1,3331.0,9.27888201]
[1768377461221,0.555,3331.1,3331.0,9.27888201]
[1768377461423,0.83602672,3331.1,3331.0,9.27888201]
[1768377461631,1.39102672,3331.1,3331.0,9.27888201]
[1768377463449,7.72,3331.5,3331.1,9.27788201]
[1768377464054,8.275,3331.5,3331.1,9.27788201]
[1768377466549,5.83008874,3331.5,3331.2,9.27788201]
[1768377466750,2.83021558,3331.5,3331.2,10.17770339]
[1768377467046,1.665,3331.7,3331.5,0.02087195]
[1768377467230,1.665,3331.7,3331.5,9.29875396]
[1768377468051,0.28033255,3331.8,3331.5,3.02245995]
[1768377468451,2.222,3331.9,3331.5,3.02245995]
[1768377468753,2.222,3331.9,3331.6,0.302246]
[1768377468921,2.777,3331.9,3331.6,0.302246]
[1768377471354,3.332,3331.9,3331.6,0.302246]
[1768377471760,3.332,3331.9,3331.6,3.30379625]
[1768377472559,3.332,3331.9,3331.6,0.302246]
[1768377473642,3.332,3331.9,3331.6,9.58012801]
[1768377473843,3.887,3331.9,3331.6,9.58012801]
[1768377474765,3.887,3331.9,3331.7,9.27788201]
[1768377476672,4.442,3331.9,3331.7,9.27788201]
[1768377477836,1e-08,3331.9,3331.8,6.27827439]
[1768377478633,0.002,3332.3,3332.2,9.27788201]
[1768377478956,0.557,3332.3,3331.8,9.27788201]
[1768377479155,6.51574239,3332.3,3331.7,3.41344915]
[1768377479357,6.51574239,3332.3,3331.5,0.02087195]
[1768377479358,6.51574239,3332.3,3331.5,3.92216906]
[1768377479562,6.51574239,3332.3,3331.5,4.35558597]
[1768377479563,0.557,3332.3,3331.5,4.35558597]
[1768377479766,0.557,3332.3,3331.6,3.00156081]
[1768377479938,0.557,3332.3,3331.6,12.27944282]
[1768377481442,10.08103987,3332.3,3331.6,3.00156081]
[1768377481636,1.112,3332.3,3331.6,3.00156081]
[1768377481838,1.112,3332.3,3331.6,12.27944282]
[1768377482039,4.1129341,3332.3,3331.6,9.27788201]
[1768377482942,6.6690154,3332.3,3331.6,9.27788201]
[1768377483145,6.6690154,3332.3,3331.5,3.00163435]
[1768377483869,7.2240154,3332.3,3331.5,3.00163435]
[1768377485977,4.2230813,3332.3,3331.5,12.05273641]
[1768377486273,4.7780813,3332.3,3331.5,12.05273641]
[1768377487393,4.7780813,3332.3,3331.6,9.05110206]
[1768377487677,2.222,3332.3,3331.6,9.05110206]
[1768377488574,2.777,3332.3,3331.6,9.05110206]
[1768377489077,0.413,3332.2,3331.6,9.05110206]
[1768377489277,0.413,3332.2,3331.6,12.05261395]
[1768377489578,0.413,3332.2,3331.7,9.05110206]
[1768377490370,0.002,3332.0,3331.7,9.05110206]
[1768377491174,0.557,3332.0,3331.7,9.05110206]
[1768377492477,0.413,3332.2,3331.7,3.0014648]
[1768377492686,0.413,3332.2,3332.0,0.02086882]
[1768377493690,0.968,3332.2,3332.0,0.02086882]
[1768377495194,0.28074521,3332.1,3332.0,0.02086882]
[1768377496018,0.83574521,3332.1,3332.0,0.02086882]
[1768377496671,2.86108147,3332.1,3332.0,0.02086882]
[1768377497704,0.83574521,3332.1,3332.0,0.02086882]
[1768377498598,1.39074521,3332.1,3332.0,0.02086882]
[1768377500776,1.39092454,3332.1,3332.0,0.02086882]
[1768377500980,1.94592454,3332.1,3332.0,0.02086882]
[1768377503416,2.50092454,3332.1,3332.0,0.02086882]
[1768377503821,2.50092454,3332.1,3331.6,3.00152713]
[1768377504032,0.28092454,3332.0,3331.6,3.00152713]
[1768377504330,0.28092454,3332.0,3331.5,12.85589564]
[1768377505824,2.38031091,3332.0,3331.2,6.00384244]
[1768377506002,0.555,3332.0,3331.3,9.85426336]
[1768377506204,0.555,3332.0,3331.4,11.44007394]
[1768377507222,0.28109718,3331.9,3331.5,3.0016509]
[1768377507428,0.555,3332.0,3331.5,3.0016509]
[1768377507626,0.28109718,3331.9,3331.5,3.0016509]
[1768377507823,0.555,3332.0,3331.5,3.0016509]
[1768377508026,0.28109713,3331.9,3331.5,14.60026663]
[1768377508227,0.555,3332.0,3331.6,9.85426336]
[1768377509005,2.22,3332.1,3331.7,9.85426336]
[1768377509220,2.22,3332.1,3331.8,9.85426336]
[1768377510619,2.22,3332.1,3331.6,3.00151877]
[1768377510820,2.775,3332.1,3331.6,12.85578213]
[1768377511212,2.775,3332.1,3331.6,9.85426336]
[1768377511612,12.34947847,3332.1,3331.5,3.00161281]
[1768377511813,2.775,3332.1,3331.5,12.85587617]
[1768377512333,2.775,3332.1,3331.5,9.85426336]
[1768377512834,1.95669709,3332.0,3331.4,3.00169779]
[1768377513014,1.95669709,3332.0,3331.5,0.60035122]
[1768377513217,0.555,3332.0,3331.5,0.60035122]
[1768377513843,0.555,3332.0,3331.8,0.001]
[1768377515530,1.11,3332.0,3331.8,0.001]
[1768377518138,1.665,3332.0,3331.8,0.001]
[1768377521127,2.22,3332.0,3331.8,0.001]
[1768377523608,2.775,3332.0,3331.8,0.001]
[1768377525741,0.28113498,3331.9,3331.8,0.001]
[1768377526120,0.83613498,3331.9,3331.8,0.001]
[1768377528932,1.39113498,3331.9,3331.8,0.001]
[1768377531961,1.94613498,3331.9,3331.8,0.001]
[1768377534447,2.50113498,3331.9,3331.8,0.001]
[1768377537255,3.05613498,3331.9,3331.8,0.001]
[1768377539736,3.61113498,3331.9,3331.8,0.001]
[1768377540553,3.61102708,3331.9,3331.8,0.001]
[1768377542359,4.16602708,3331.9,3331.8,0.001]
[1768377544759,4.72102708,3331.9,3331.8,0.001]
[1768377547563,5.27602708,3331.9,3331.8,0.001]
[1768377550478,5.83102708,3331.9,3331.8,0.001]
[1768377550764,2.775,3332.1,3331.8,9.09448095]
[1768377552780,3.33,3332.1,3331.8,9.09448095]
[1768377556051,3.885,3332.1,3331.8,9.09448095]
[1768377557879,3.885,3332.1,3331.8,0.001]
[1768377558442,4.44,3332.1,3331.8,0.001]
[1768377559855,4.44,3332.1,3331.8,9.80390147]
[1768377560947,4.995,3332.1,3331.8,9.80390147]
[1768377561886,4.995,3332.1,3331.8,0.001]
[1768377562258,4.995,3332.1,3331.8,9.80390147]
[1768377562658,0.281028,3332.0,3331.8,9.80390147]
[1768377562865,4.995,3332.1,3331.8,9.80390147]
[1768377563381,5.55,3332.1,3331.8,9.80390147]
[1768377565671,6.105,3332.1,3331.8,9.80390147]
[1768377568184,6.66,3332.1,3331.8,9.80390147]
[1768377570895,7.215,3332.1,3331.8,9.80390147]
[1768377573782,7.77,3332.1,3331.8,9.80390147]
[1768377573983,7.77,3332.1,3331.8,0.001]
[1768377575184,8.83569731,3332.0,3331.5,3.00160688]
[1768377575406,7.77,3332.1,3331.5,3.60194764]
[1768377576208,9.78598538,3332.1,3331.5,3.60194764]
[1768377576414,10.34098538,3332.1,3331.5,3.60194764]
[1768377576712,8.325,3332.1,3331.5,13.33370716]
[1768377577016,8.325,3332.1,3331.6,9.73175952]
[1768377578214,8.325,3332.1,3331.6,10.07180829]
[1768377578789,8.88,3332.1,3331.6,10.07180829]
[1768377579217,8.88,3332.1,3331.7,9.73175952]
[1768377581287,9.435,3332.1,3331.7,9.73175952]
[1768377581825,4.77273371,3332.1,3332.0,9.73175952]
[1768377581998,0.11038158,3332.1,3331.8,9.73175952]
[1768377582318,0.11038158,3332.1,3332.0,9.73175952]
[1768377582689,1e-08,3332.1,3331.7,3.00146662]
[1768377582891,0.555,3332.2,3332.1,0.02086864]
[1768377583535,1.11,3332.2,3332.1,0.02086864]
[1768377586025,1.665,3332.2,3332.1,0.02086864]
[1768377587092,0.28106048,3332.2,3332.1,0.02086864]
[1768377587292,11.67739038,3332.3,3332.1,0.02086864]
[1768377587493,2.777,3332.3,3332.1,0.02086864]
[1768377587725,2.777,3332.3,3332.1,9.75262816]
[1768377588429,3.332,3332.3,3332.1,0.02086864]
[1768377589521,3.332,3332.3,3332.1,9.75262816]
[1768377590827,3.887,3332.3,3332.1,9.75262816]
[1768377592823,3.887,3332.3,3332.1,10.72789098]
[1768377592993,2.222,3332.6,3332.3,11.39451052]
[1768377593189,2.03998775,3332.6,3332.3,1.662751]
[1768377593422,2.80440617,3332.5,3332.3,1.662751]
[1768377593594,1.72143766,3332.6,3332.3,1.662751]
[1768377594196,1.72143766,3332.6,3332.3,1.44164721]
[1768377595124,1.67143766,3332.6,3332.3,11.17340673]
[1768377595323,8.97174767,3332.6,3332.3,1.44164721]
[1768377595517,9.52674767,3332.6,3332.2,3.00101342]
[1768377595715,0.555,3332.6,3332.2,12.73277294]
[1768377596200,3.188,3332.7,3332.4,0.001]
[1768377596724,3.188,3332.7,3332.4,9.73275952]
[1768377596922,3.188,3332.7,3332.4,0.001]
[1768377597708,3.743,3332.7,3332.4,0.001]
[1768377597904,0.16903997,3332.6,3332.1,3.02196971]
[1768377598106,3.743,3332.7,3332.1,3.62429543]
[1768377598331,3.743,3332.7,3332.2,9.73175952]
[1768377599534,6.74361677,3332.7,3332.2,9.73175952]
[1768377599694,6.74361677,3332.7,3331.8,3.90189696]
[1768377599695,9.74423354,3332.7,3331.9,9.73175952]
[1768377600429,10.29923354,3332.7,3331.9,9.73175952]
[1768377600727,10.29923354,3332.7,3332.1,9.73175952]
[1768377601924,10.29923354,3332.7,3331.8,0.001]
[1768377601925,6.43742362,3332.6,3331.8,0.001]
[1768377602935,6.99242362,3332.6,3331.6,0.34004877]
[1768377603356,6.99242362,3332.6,3331.2,6.05494]
[1768377603498,6.99242362,3332.6,3331.1,13.85]
[1768377603814,9.00771082,3332.4,3331.2,3.00187195]
[1768377604002,6.46312649,3332.2,3331.3,9.73175952]
[1768377605105,6.46312649,3332.2,3331.1,6.85200132]
[1768377605316,7.01812649,3332.2,3331.2,1.72929879]
[1768377605636,0.555,3332.2,3331.2,9.1622159]
[1768377605936,3.00111041,3332.1,3331.3,9.1622159]
[1768377606339,6.00222082,3332.1,3331.3,9.1622159]
[1768377606545,3.00111041,3332.1,3331.3,9.1622159]
[1768377606729,3.00111041,3332.1,3331.4,0.03001741]
[1768377606935,3.00111041,3332.1,3331.5,0.91922333]
[1768377607646,3.55611041,3332.1,3331.5,0.91922333]
[1768377608350,3.55611041,3332.1,3331.6,0.001]
[1768377609041,16.27466401,3332.1,3331.6,0.001]
[1768377609209,0.555,3332.1,3331.6,0.001]
[1768377609410,0.555,3332.6,3331.9,9.1622159]
[1768377609610,0.555,3332.6,3331.6,0.0310156]
[1768377609611,0.413,3332.5,3332.3,9.1622159]
[1768377609810,0.413,3332.5,3332.0,0.91622159]
[1768377609811,0.968,3332.6,3332.0,0.91622159]
[1768377610064,1.11,3332.6,3332.0,9.1622159]
[1768377610347,3.885,3332.7,3331.9,9.1622159]
[1768377611239,4.298,3332.7,3332.1,9.1622159]
[1768377611436,3.885,3332.7,3332.1,9.1622159]
[1768377611638,8.5782403,3333.1,3332.1,9.1622159]
[1768377611919,8.5782403,3333.1,3332.0,9.00360144]
[1768377611920,1.10389343,3333.0,3332.2,1.81658173]
[1768377612352,0.413,3333.0,3332.2,1.81658173]
[1768377612817,0.413,3333.0,3332.2,10.97879763]
[1768377613222,0.413,3333.0,3332.3,15.16407646]
[1768377614040,0.413,3333.0,3332.4,9.1622159]
[1768377614255,0.413,3333.0,3332.5,1.51640765]
[1768377614829,0.968,3333.0,3332.5,1.51640765]
[1768377616466,0.968,3333.0,3332.6,3.00066014]
[1768377616763,0.08106231,3333.1,3332.6,6.00132028]
[1768377617128,0.63606231,3333.1,3332.6,6.00132028]
[1768377617329,0.63606231,3333.1,3332.7,0.60013203]
[1768377617590,0.555,3333.1,3332.7,0.60013203]
[1768377618956,8.58097964,3333.1,3332.8,3.00048007]
[1768377619637,1.11,3333.1,3332.8,3.00048007]
[1768377620032,1.112,3333.1,3332.8,3.00048007]
[1768377620481,1.112,3333.1,3332.8,16.65511655]
[1768377620768,0.413,3333.5,3332.9,9.08548934]
[1768377620953,8.43897964,3333.5,3333.2,3.02095612]
[1768377621377,0.002,3333.7,3333.2,6.02107612]
[1768377621671,0.002,3333.7,3333.3,9.08548934]
[1768377622042,0.557,3333.7,3333.3,9.08548934]
[1768377623043,2.02282104,3333.9,3333.4,12.08542934]
[1768377624146,1.60982104,3333.9,3333.5,9.08548934]
[1768377624347,2.02282104,3333.9,3333.5,9.08548934]
[1768377624679,2.57782104,3333.9,3333.5,9.08548934]
[1768377625378,2.16482104,3333.9,3333.5,12.08531832]
[1768377625545,2.57782104,3333.9,3333.5,12.08531832]
[1768377627072,3.13282104,3333.9,3333.5,12.08531832]
[1768377629781,3.68782104,3333.9,3333.5,12.08531832]
[1768377629949,3.27482104,3333.9,3333.5,12.08531832]
[1768377630654,3.27482104,3333.9,3333.5,9.08548934]
[1768377631006,3.27482104,3333.9,3333.5,12.0853145]
[1768377631285,1e-08,3334.4,3333.8,15.08464944]
[1768377631483,1e-08,3334.4,3333.9,0.412]
[1768377631851,1e-08,3334.4,3333.8,2.99958005]
[1768377632047,0.55500001,3334.4,3333.9,0.64112475]
[1768377633376,0.55500001,3334.4,3334.0,2.99940011]
[1768377634559,1.11000001,3334.4,3334.0,2.99940011]
[1768377635289,1.11000001,3334.4,3333.9,12.83041617]
[1768377636873,1.66500001,3334.4,3333.9,12.83041617]
[1768377637862,0.00160511,3334.3,3333.5,12.19061389]
[1768377638171,0.00160511,3334.3,3333.5,9.19081727]
[1768377638685,0.00160511,3334.3,3333.5,3.00084918]
[1768377639272,0.00160511,3334.2,3333.5,0.001]
[1768377639590,0.412,3334.1,3333.5,0.001]
[1768377641695,0.967,3334.1,3333.5,0.001]
[1768377641858,0.967,3334.1,3333.5,9.19081727]
[1768377642194,0.967,3334.1,3333.6,9.18981727]
[1768377643389,0.967,3334.1,3333.0,3.00026847]
[1768377643390,6.60601482,3334.0,3333.1,9.18981727]
[1768377644113,3.067474,3333.9,3333.1,9.18981727]
[1768377645695,6.54063451,3333.8,3332.9,9.18981727]
[1768377646003,3.54439945,3333.7,3332.9,12.19019583]
[1768377646617,4.09939945,3333.7,3332.9,9.18981727]
[1768377647290,6.47655526,3333.6,3332.6,3.00065642]
[1768377647492,6.88649521,3333.6,3332.6,3.00065642]
[1768377648607,0.19614888,3333.4,3332.5,3.00074224]
[1768377648813,5.9997,3333.5,3332.5,3.00074224]
[1768377648814,6.89040323,3333.3,3332.5,3.00074224]
[1768377649019,6.89040323,3333.3,3332.5,4.51987961]
[1768377649315,6.89040323,3333.3,3332.5,7.52062979]
[1768377649624,6.89040323,3333.3,3332.5,4.51987961]
[1768377651423,10.44543486,3333.3,3332.5,1.51913737]
[1768377652320,10.44543486,3333.3,3332.5,13.70970154]
[1768377652608,7.44540323,3333.3,3332.5,13.70970154]
[1768377652819,7.03340323,3333.3,3332.6,1.67105029]
[1768377652987,0.412,3333.2,3332.6,1.67105029]
[1768377653822,0.412,3333.2,3332.6,10.86086756]
[1768377654023,0.967,3333.2,3332.6,10.86086756]
[1768377654684,0.967,3333.2,3332.7,6.0011402]
[1768377654886,0.967,3333.2,3332.7,16.87715825]
[1768377655086,0.555,3333.3,3332.8,9.18981727]
[1768377655299,1e-08,3333.4,3333.0,9.18981727]
[1768377656441,1e-08,3333.4,3332.8,0.001]
[1768377656442,0.555,3333.7,3333.1,9.18981727]
[1768377657096,0.555,3333.7,3333.2,3.00012]
[1768377657294,0.555,3333.7,3333.3,9.18981727]
[1768377657545,1e-08,3333.7,3333.3,9.18981727]
[1768377659238,1e-08,3333.7,3333.4,12.18975727]
[1768377659398,0.55500001,3333.7,3333.4,12.18975727]
[1768377659598,1e-08,3334.0,3333.5,9.18981727]
[1768377659834,1e-08,3334.0,3333.6,11.00878715]
[1768377660941,0.967,3334.3,3333.7,9.18981727]
[1768377661249,0.967,3334.3,3333.6,1.81896988]
[1768377661250,0.967,3334.3,3333.8,12.18939732]
[1768377661705,1.522,3334.3,3333.8,12.18939732]
[1768377662105,1.11,3334.3,3333.8,12.18939732]
[1768377662778,1.11,3334.3,3333.8,15.18897737]
[1768377663268,2.07700001,3334.4,3333.9,9.18981727]
[1768377663646,2.07700001,3334.4,3333.9,6.08681727]
[1768377663847,2.07700001,3334.4,3333.9,7.31806819]
[1768377664447,2.63200001,3334.4,3333.9,7.31806819]
[1768377664656,9.10566854,3334.4,3333.8,2.99958005]
[1768377664848,0.06539232,3334.3,3333.8,2.99958005]
[1768377665043,0.412,3334.2,3333.7,12.18946183]
[1768377665269,0.412,3334.2,3333.7,15.18913186]
[1768377666165,0.412,3334.2,3333.7,12.18946183]
[1768377666687,0.412,3334.2,3333.7,2.99964456]
[1768377666852,0.412,3334.2,3332.9,3.85]
[1768377666853,6.47366853,3333.8,3333.1,9.16814019]
[1768377667042,6.47366853,3333.8,3332.9,9.16814019]
[1768377667043,6.93878048,3333.8,3332.9,9.16814019]
[1768377667236,9.21944776,3333.7,3332.9,9.16814019]
[1768377667439,9.63144776,3333.7,3332.9,9.16814019]
[1768377667759,9.21944776,3333.7,3332.9,9.16814019]
[1768377667945,9.63144776,3333.7,3332.9,9.16814019]
[1768377669140,10.18644776,3333.7,3332.9,12.16844075]
[1768377669554,13.18613039,3333.7,3332.9,12.16844075]
[1768377669792,10.18644776,3333.7,3332.9,12.16844075]
[1768377670395,13.18613917,3333.7,3332.9,12.16844075]
[1768377670874,10.18644776,3333.7,3332.9,12.16844075]
[1768377671089,6.47566853,3335.0,3332.9,12.16844075]
[1768377671090,0.002,3335.5,3335.1,9.16814019]
[1768377671255,0.002,3335.5,3333.9,2.99944758]
[1768377671256,0.002,3335.5,3334.4,9.16814019]
[1768377671641,0.557,3335.5,3335.0,2.99841188]
[1768377671844,0.557,3335.5,3335.1,2.99840403]
[1768377672243,0.557,3335.5,3335.1,5.99681487]
[1768377672669,0.54108509,3335.5,3335.1,5.99681487]
[1768377672873,0.54108509,3335.5,3335.1,2.99840403]
[1768377673183,0.54108509,3335.5,3334.6,8.99654555]
[1768377673470,0.54108509,3335.5,3334.6,8.24513733]
[1768377673851,0.54108509,3335.5,3334.6,17.41327752]
[1768377674038,1.09608509,3335.5,3334.6,17.41327752]
[1768377674242,1.09608509,3335.5,3334.7,9.16814019]
[1768377675156,1.09608509,3335.5,3334.9,9.16814019]
[1768377675359,0.002,3335.7,3335.1,9.16814019]
[1768377676072,0.555,3336.0,3335.1,9.16814019]
[1768377676371,0.555,3336.0,3335.5,9.16814019]
[1768377677269,0.555,3336.0,3335.5,12.16618934]
[1768377678868,1.11,3336.0,3335.6,9.52107001]
[1768377679448,0.002,3335.7,3335.6,12.51896722]
[1768377679767,1.10786062,3336.0,3335.6,2.99789721]
[1768377681162,1.66286062,3336.0,3335.6,2.99789721]
[1768377681359,1.66286062,3336.0,3335.4,0.412]
[1768377681547,4.8269636,3336.0,3335.1,2.99834245]
[1768377681745,5.08969122,3336.0,3335.2,3.41026867]
[1768377682446,2.0920743,3336.0,3335.3,2.99822368]
[1768377682969,5.08971496,3336.0,3335.2,0.412]
[1768377683168,2.0920743,3336.0,3335.3,2.99821575]
[1768377683553,2.6470743,3336.0,3335.3,2.99821575]
[1768377683755,2.38434668,3336.0,3335.3,2.99821575]
[1768377684575,2.38434668,3336.0,3335.2,3.41028931]
[1768377684870,2.38434668,3336.0,3335.2,6.40861025]
[1768377685181,2.21786062,3336.0,3335.3,9.52107001]
[1768377685486,0.002,3336.1,3335.7,9.52107001]
[1768377685653,10.1462554,3336.8,3335.8,9.93307001]
[1768377686059,10.1462554,3336.8,3335.8,0.412]
[1768377686260,0.26272762,3336.6,3335.8,0.412]
[1768377686783,9.63954012,3336.5,3335.8,0.412]
[1768377687992,9.63954012,3336.5,3335.8,3.40975832]
[1768377688281,12.8279259,3336.7,3335.8,3.40975832]
[1768377688645,0.555,3336.8,3335.8,15.92860997]
[1768377689049,0.555,3336.8,3335.9,9.52107001]
[1768377689488,0.555,3336.8,3335.3,9.52107001]
[1768377689489,0.26272762,3336.7,3335.3,9.52107001]
[1768377689695,0.26272762,3336.7,3335.4,0.412]
[1768377689849,5.99412574,3336.6,3335.4,3.41008607]
[1768377690057,9.63954012,3336.5,3335.4,3.41008607]
[1768377690272,5.99412574,3336.6,3335.4,3.41008607]
[1768377690273,0.35649575,3336.4,3335.4,3.41008607]
[1768377690991,9.54670967,3336.3,3335.4,3.41008607]
[1768377691494,0.555,3336.4,3335.4,12.93115608]
[1768377692070,2.99733237,3336.3,3335.4,12.93115608]
[1768377692652,2.99733237,3336.3,3335.5,9.52107001]
[1768377693080,0.555,3336.4,3335.5,9.52107001]
[1768377693282,0.555,3336.4,3335.5,11.11409973]
[1768377693558,1.11,3336.4,3335.5,11.11409973]
[1768377694697,1.11,3336.4,3335.7,9.52107001]
[1768377694898,1.11,3336.4,3335.8,0.412]
[1768377695905,1.665,3336.4,3335.8,0.412]
[1768377696605,1.665,3336.4,3335.8,3.4097214]
[1768377697877,1.665,3336.4,3335.8,14.93199921]
[1768377698272,2.22,3336.4,3335.8,14.93199921]
[1768377698507,2.22,3336.4,3335.9,9.74746051]
[1768377699302,2.22,3336.4,3336.0,2.99760191]
[1768377700009,2.22,3336.4,3336.1,9.74746051]
[1768377700187,2e-08,3336.4,3336.2,11.73372694]
[1768377700384,2e-08,3336.4,3336.2,1.98626643]
[1768377700598,0.55500002,3336.4,3336.2,1.98626643]
[1768377700916,0.002,3336.5,3336.2,11.73372694]
[1768377701218,0.557,3336.8,3336.3,2.99733237]
[1768377702070,0.557,3336.8,3336.3,12.74479288]
[1768377702292,0.557,3336.8,3336.4,9.74746051]
[1768377703500,1.112,3336.8,3336.4,9.74746051]
[1768377703706,1.112,3336.8,3336.5,9.74746051]
[1768377703894,1.112,3336.8,3336.4,2.99720755]
[1768377703895,1.112,3336.8,3336.6,10.15946051]
[1768377705288,1.112,3336.8,3336.6,0.412]
[1768377705289,1e-08,3336.8,3336.6,0.412]
[1768377705875,0.55500001,3336.8,3336.6,0.412]
[1768377708504,1.11000001,3336.8,3336.6,0.412]
[1768377709902,2.24447878,3336.8,3336.6,0.25503269]
[1768377710201,8.77650648,3336.7,3336.2,0.412]
[1768377710390,1.11000001,3336.8,3336.2,0.412]
[1768377710905,8.93245819,3336.7,3336.2,0.412]